[Event "Czech Juniors Boys 2024"]
[Site "Jaromerice nad Rokytnou"]
[Date "2024.03.16"]
[Round "11.3"]
[White "Bohacek, Jan Andrej"]
[Black "Vilimek, Vit"]
[Result "1/2-1/2"]
[ECO "A90"]
[WhiteElo "2140"]
[BlackElo "2061"]
[Annotator "RC"]
[PlyCount "84"]
[EventDate "2024.03.10"]
[EventType "tourn"]
[EventCountry "CZE"]
[SourceTitle "playchess.com"]
[Source "ChessBase"]
[SourceQuality "1"]
[TimeControl "40/5400+30:1800+30"]

1. d4 {[%emt 0:00:42]} f5 {[%emt 0:00:05]} 2. c4 {[%emt 0:01:26]} e6 {[%emt 0:00:14]} 3. Nf3 {[%emt 0:01:07]} d5 {[%emt 0:00:17]} 4. g3 {[%emt 0:01:25]} Nf6 {[%emt 0:00:27]} 5. Bg2 {[%emt 0:00:36]} c6 {[%emt 0:00:35]} 6. O-O {[%emt 0:00:39]} h6 {[%emt 0:00:40]} 7. Nbd2 {[%emt 0:04:08]} Nbd7 {[%emt 0:01:27]} 8. Qc2 {[%emt 0:04:17]} Bd6 {[%emt 0:02:23]} 9. Ne1 {[%emt 0:06:39]} g5 {[%emt 0:02:43]} 10. Nd3 {[%emt 0:10:01]} g4 {[%emt 0:07:48]} 11. b4 {[%emt 0:07:35]} h5 {[%emt 0:14:06]} 12. b5 {[%emt 0:06:50]} h4 {[%emt 0:24:10]} 13. bxc6 {[%emt 0:05:47]} bxc6 {[%emt 0:00:14]} 14. Rd1 {[%emt 0:15:05]} hxg3 {[%emt 0:02:18]} 15. hxg3 {[%emt 0:00:20]} Ne4 {[%emt 0:05:41]} 16. Nf1 {[%emt 0:08:43]} Ba6 {[%emt 0:06:28]} 17. cxd5 {[%emt 0:02:16]} cxd5 {[%emt 0:00:23]} 18. Qc6 {[%emt 0:10:30]} Qc8 {[%emt 0:01:43]} 19. Qxc8+ {[%emt 0:00:07]} Rxc8 {[%emt 0:00:07]} 20. Re1 {[%emt 0:03:14]} Kf7 {[%emt 0:07:29]} 21. Bf4 {[%emt 0:00:50]} Ba3 {[%emt 0:09:49]} 22. Ne5+ {[%emt 0:01:48]} Nxe5 {[%emt 0:00:21]} 23. Bxe5 {[%emt 0:00:06]} Rhd8 {[%emt 0:01:12]} 24. f3 {[%emt 0:06:01]} Nc3 {[%emt 0:02:25]} 25. fxg4 {[%emt 0:00:26]} Bb2 {[%emt 0:05:53]} 26. gxf5 {[%emt 0:00:08]} exf5 {[%emt 0:00:08]} 27. Rab1 {[%emt 0:00:53]} Nxb1 {[%emt 0:00:04]} 28. Rxb1 {[%emt 0:00:07]} Bc1 {[%emt 0:00:05]} 29. Bf3 {[%emt 0:02:09]} Ke6 {[%emt 0:01:46]} 30. Kf2 {[%emt 0:00:37]} Rc2 {[%emt 0:01:05]} 31. Ne3 {[%emt 0:00:23]} Bxe3+ {[%emt 0:00:44]} 32. Kxe3 {[%emt 0:00:07]} Rxa2 {[%emt 0:02:52]} 33. Rh1 {[%emt 0:00:07]} Bc4 {[%emt 0:00:33]} 34. Rh6+ {[%emt 0:00:21]} Kd7 {[%emt 0:00:34]} 35. Rd6+ {[%emt 0:01:29]} Kc8 {[%emt 0:00:10]} 36. Rc6+ {[%emt 0:00:04]} Kd7 {[%emt 0:00:34]} 37. Rc7+ {[%emt 0:00:24]} Ke6 {[%emt 0:00:13]} 38. Rc6+ {[%emt 0:00:32]} Ke7 {[%emt 0:00:27]} 39. Rh6 {[%emt 0:01:21]} Rg8 {[%emt 0:00:42]} 40. Rh7+ {[%emt 0:00:32]} Kd8 {[%emt 0:00:37]} 41. Rb7 {[%emt 0:06:26]} Rg6 {[%emt 0:01:31]} 42. Kf4 {[%emt 0:05:04]} Rb6 {[%emt 0:11:12]} 1/2-1/2

[Event "Czech Juniors Boys 2024"]
[Site "Jaromerice nad Rokytnou"]
[Date "2024.03.16"]
[Round "11.4"]
[White "Hak, David"]
[Black "Soucek, Petr"]
[Result "1-0"]
[ECO "D38"]
[WhiteElo "2283"]
[BlackElo "2209"]
[Annotator "RC"]
[PlyCount "103"]
[EventDate "2024.03.10"]
[EventType "tourn"]
[EventCountry "CZE"]
[SourceTitle "playchess.com"]
[Source "ChessBase"]
[SourceQuality "1"]
[TimeControl "40/5400+30:1800+30"]

1. d4 {[%emt 0:01:49]} Nf6 {[%emt 0:01:27]} 2. c4 {[%emt 0:00:13]} e6 {[%emt 0:00:05]} 3. Nc3 {[%emt 0:00:58]} d5 {[%emt 0:00:09]} 4. Nf3 {[%emt 0:00:20]} Bb4 {[%emt 0:00:05]} 5. Qa4+ {[%emt 0:00:59]} Nc6 {[%emt 0:00:10]} 6. e3 {[%emt 0:00:09]} O-O {[%emt 0:00:59]} 7. Be2 {[%emt 0:02:06]} dxc4 {[%emt 0:02:30]} 8. Bxc4 {[%emt 0:01:49]} Re8 {[%emt 0:05:49]} 9. O-O {[%emt 0:00:31]} Bf8 {[%emt 0:14:57]} 10. Rd1 {[%emt 0:01:18]} Bd7 {[%emt 0:00:30]} 11. Qc2 {[%emt 0:01:01]} h6 {[%emt 0:19:51]} 12. e4 {[%emt 0:04:30]} e5 {[%emt 0:10:17]} 13. Qb3 {[%emt 0:08:12]} Qe7 {[%emt 0:11:26]} 14. Nxe5 {[%emt 0:10:12]} Nxe5 {[%emt 0:00:34]} 15. dxe5 {[%emt 0:00:13]} Ng4 {[%emt 0:01:51]} 16. Bxf7+ {[%emt 0:13:35]} Qxf7 {[%emt 0:00:13]} 17. Qxf7+ {[%emt 0:00:11]} Kxf7 {[%emt 0:00:05]} 18. Rxd7+ {[%emt 0:00:17]} Re7 {[%emt 0:00:50]} 19. Rxe7+ {[%emt 0:02:50]} Bxe7 {[%emt 0:00:06]} 20. Bf4 {[%emt 0:01:56]} Ke6 {[%emt 0:04:18]} 21. Nb5 {[%emt 0:01:37]} Rc8 {[%emt 0:03:02]} 22. Nd4+ {[%emt 0:02:12]} Kf7 {[%emt 0:00:06]} 23. h3 {[%emt 0:12:50]} Bc5 {[%emt 0:00:56]} 24. Rd1 {[%emt 0:13:16]} Rd8 {[%emt 0:00:39]} 25. e6+ {[%emt 0:02:37]} Ke8 {[%emt 0:01:04]} 26. hxg4 {[%emt 0:04:42]} Bxd4 {[%emt 0:01:08]} 27. Rd2 {[%emt 0:03:09]} c5 {[%emt 0:00:34]} 28. g5 {[%emt 0:01:58]} hxg5 {[%emt 0:02:32]} 29. Bxg5 {[%emt 0:00:13]} Rd6 {[%emt 0:00:02]} 30. Be3 {[%emt 0:03:28]} Ke7 {[%emt 0:00:27]} 31. Bxd4 {[%emt 0:01:30]} cxd4 {[%emt 0:00:02]} 32. Kf1 {[%emt 0:00:59]} g5 {[%emt 0:01:49]} 33. Ke2 {[%emt 0:00:45]} Kxe6 {[%emt 0:00:52]} 34. Kd3 {[%emt 0:00:13]} Ra6 {[%emt 0:01:23]} 35. b3 {[%emt 0:01:14]} Ke5 {[%emt 0:00:52]} 36. Rc2 {[%emt 0:00:08]} Ra5 {[%emt 0:00:23]} 37. f3 {[%emt 0:01:18]} b6 {[%emt 0:00:49]} 38. a4 {[%emt 0:02:43]} g4 {[%emt 0:00:26]} 39. fxg4 {[%emt 0:00:32]} Kf4 {[%emt 0:00:08]} 40. Kxd4 {[%emt 0:00:26]} Kxg4 {[%emt 0:00:09]} 41. e5 {[%emt 0:30:27]} Kf5 {[%emt 0:30:14]} 42. g4+ {[%emt 0:00:00]} Ke6 {[%emt 0:00:00]} 43. Rc6+ {[%emt 0:00:00]} Kd7 {[%emt 0:00:00]} 44. Rd6+ {[%emt 0:00:00]} Ke7 {[%emt 0:00:00]} 45. Rd5 {[%emt 0:00:00]} Ra6 {[%emt 0:00:00]} 46. Rb5 {[%emt 0:00:00]} Ke6 {[%emt 0:00:00]} 47. g5 {[%emt 0:00:00]} Kf5 {[%emt 0:00:00]} 48. Kd5 {[%emt 0:00:00]} Kxg5 {[%emt 0:00:00]} 49. Kd6 {[%emt 0:00:00]} Kg6 {[%emt 0:00:00]} 50. e6 {[%emt 0:00:00]} Kf6 {[%emt 0:00:00]} 51. e7 {[%emt 0:00:00]} Kf7 {[%emt 0:00:00]} 52. Kd7 {[%emt 0:00:00]} 1-0

[Event "Czech Juniors Boys 2024"]
[Site "Jaromerice nad Rokytnou"]
[Date "2024.03.16"]
[Round "11.5"]
[White "Frank, Adam"]
[Black "Seidl, Jan"]
[Result "1-0"]
[ECO "B19"]
[WhiteElo "2284"]
[BlackElo "2230"]
[Annotator "RC"]
[PlyCount "79"]
[EventDate "2024.03.10"]
[EventType "tourn"]
[EventCountry "CZE"]
[SourceTitle "playchess.com"]
[Source "ChessBase"]
[SourceQuality "1"]
[TimeControl "40/5400+30:1800+30"]

1. e4 {[%emt 0:00:06]} c6 {[%emt 0:00:04]} 2. d4 {[%emt 0:00:04]} d5 {[%emt 0:00:03]} 3. Nc3 {[%emt 0:00:04]} dxe4 {[%emt 0:00:13]} 4. Nxe4 {[%emt 0:00:05]} Bf5 {[%emt 0:00:05]} 5. Ng3 {[%emt 0:00:03]} Bg6 {[%emt 0:00:04]} 6. h4 {[%emt 0:00:06]} h6 {[%emt 0:00:05]} 7. Nf3 {[%emt 0:00:03]} Nd7 {[%emt 0:00:05]} 8. h5 {[%emt 0:00:04]} Bh7 {[%emt 0:00:04]} 9. Bd3 {[%emt 0:00:03]} Bxd3 {[%emt 0:00:05]} 10. Qxd3 {[%emt 0:00:03]} e6 {[%emt 0:00:12]} 11. Bd2 {[%emt 0:00:03]} Ngf6 {[%emt 0:00:14]} 12. O-O-O {[%emt 0:00:05]} Be7 {[%emt 0:00:09]} 13. Kb1 {[%emt 0:00:19]} O-O {[%emt 0:00:13]} 14. Ne4 {[%emt 0:00:03]} c5 {[%emt 0:00:09]} 15. g4 {[%emt 0:03:24]} Nxg4 {[%emt 0:02:41]} 16. Qe2 {[%emt 0:00:44]} Qb6 {[%emt 0:00:35]} 17. Ne5 {[%emt 0:01:22]} Ndxe5 {[%emt 0:00:07]} 18. dxe5 {[%emt 0:00:05]} f5 {[%emt 0:00:08]} 19. exf6 {[%emt 0:03:18]} Nxf6 {[%emt 0:00:09]} 20. Nxf6+ {[%emt 0:00:04]} Bxf6 {[%emt 0:00:09]} 21. c3 {[%emt 0:00:03]} Rad8 {[%emt 0:03:25]} 22. Rhg1 {[%emt 0:00:08]} Kf7 {[%emt 0:00:15]} 23. Ka1 {[%emt 0:16:09]} Rd5 {[%emt 0:11:16]} 24. Bf4 {[%emt 0:05:35]} Rfd8 {[%emt 0:10:55]} 25. Rde1 {[%emt 0:00:07]} Rd3 {[%emt 0:15:23]} 26. Qg4 {[%emt 0:01:27]} R8d5 {[%emt 0:13:03]} 27. Qg6+ {[%emt 0:07:34]} Ke7 {[%emt 0:00:16]} 28. Qh7 {[%emt 0:02:07]} Rf3 {[%emt 0:09:49]} 29. Rxg7+ {[%emt 0:13:37]} Bxg7 {[%emt 0:00:02]} 30. Qxg7+ {[%emt 0:00:05]} Kd8 {[%emt 0:01:44]} 31. Bc7+ {[%emt 0:00:13]} Qxc7 {[%emt 0:00:10]} 32. Qg8+ {[%emt 0:00:05]} Rf8 {[%emt 0:00:28]} 33. Qxf8+ {[%emt 0:00:08]} Kd7 {[%emt 0:00:04]} 34. Qxh6 {[%emt 0:19:39]} Qd6 {[%emt 0:00:13]} 35. Qh7+ {[%emt 0:00:05]} Ke8 {[%emt 0:03:12]} 36. Qg6+ {[%emt 0:00:28]} Ke7 {[%emt 0:00:41]} 37. Qg7+ {[%emt 0:00:05]} Ke8 {[%emt 0:00:07]} 38. Qg4 {[%emt 0:00:09]} Kd7 {[%emt 0:00:30]} 39. h6 {[%emt 0:00:41]} Rd2 {[%emt 0:00:21]} 40. h7 {[%emt 0:02:00]} 1-0

[Event "Czech Juniors Boys 2024"]
[Site "Jaromerice nad Rokytnou"]
[Date "2024.03.16"]
[Round "11.6"]
[White "Jares, Michal"]
[Black "Jun, Rudolf"]
[Result "1/2-1/2"]
[ECO "B84"]
[WhiteElo "2347"]
[BlackElo "2243"]
[Annotator "RC"]
[PlyCount "68"]
[EventDate "2024.03.10"]
[EventType "tourn"]
[EventCountry "CZE"]
[SourceTitle "playchess.com"]
[Source "ChessBase"]
[SourceQuality "1"]
[TimeControl "40/5400+30:1800+30"]

1. e4 {[%emt 0:00:04]} c5 {[%emt 0:00:04]} 2. Nf3 {[%emt 0:00:02]} e6 {[%emt 0:00:04]} 3. d4 {[%emt 0:00:06]} cxd4 {[%emt 0:00:17]} 4. Nxd4 {[%emt 0:00:04]} Nc6 {[%emt 0:01:07]} 5. Nc3 {[%emt 0:00:55]} d6 {[%emt 0:06:24]} 6. Be3 {[%emt 0:02:52]} Nf6 {[%emt 0:01:06]} 7. Be2 {[%emt 0:00:49]} Be7 {[%emt 0:00:17]} 8. Qd2 {[%emt 0:02:51]} a6 {[%emt 0:00:28]} 9. O-O-O {[%emt 0:02:20]} Qc7 {[%emt 0:09:44]} 10. g4 {[%emt 0:04:24]} O-O {[%emt 0:01:22]} 11. g5 {[%emt 0:02:09]} Nd7 {[%emt 0:00:04]} 12. f4 {[%emt 0:07:17]} b5 {[%emt 0:03:44]} 13. Nxc6 {[%emt 0:02:14]} Qxc6 {[%emt 0:00:08]} 14. Bd3 {[%emt 0:00:15]} Nc5 {[%emt 0:09:58]} 15. f5 {[%emt 0:10:42]} b4 {[%emt 0:04:06]} 16. Ne2 {[%emt 0:00:14]} b3 {[%emt 0:01:38]} 17. Kb1 {[%emt 0:00:01]} Nxe4 {[%emt 0:05:03]} 18. Bxe4 {[%emt 0:00:35]} Qxe4 {[%emt 0:00:13]} 19. axb3 {[%emt 0:04:46]} Qxf5 {[%emt 0:00:50]} 20. Rdf1 {[%emt 0:06:57]} Qe4 {[%emt 0:04:47]} 21. Nc3 {[%emt 0:01:46]} Qc6 {[%emt 0:00:12]} 22. h4 {[%emt 0:00:50]} Bb7 {[%emt 0:00:20]} 23. h5 {[%emt 0:02:03]} Qg2 {[%emt 0:11:12]} 24. Qd1 {[%emt 0:03:20]} f5 {[%emt 0:06:30]} 25. gxf6 {[%emt 0:03:52]} Rxf6 {[%emt 0:01:05]} 26. Rfg1 {[%emt 0:04:08]} Qf3 {[%emt 0:00:39]} 27. Qe1 {[%emt 0:00:02]} Raf8 {[%emt 0:04:44]} 28. Bg5 {[%emt 0:02:50]} R6f7 {[%emt 0:01:02]} 29. Bxe7 {[%emt 0:04:34]} Rxe7 {[%emt 0:00:02]} 30. Rf1 {[%emt 0:01:30]} Qg4 {[%emt 0:00:53]} 31. Rxf8+ {[%emt 0:01:43]} Kxf8 {[%emt 0:00:01]} 32. Rf1+ {[%emt 0:00:54]} Rf7 {[%emt 0:01:47]} 33. Rxf7+ {[%emt 0:00:23]} Kxf7 {[%emt 0:00:03]} 34. Qf2+ {[%emt 0:00:12]} Ke7 {[%emt 0:07:28]} 1/2-1/2